fUSD/lending_fUSD_20260507
["ID","MTS","AMOUNT","RATE_DAILY","PERIOD"]
[421772504,1778129451000,-122453.10270101,0.00035,2]
[421772479,1778129451000,-213.79,0.00034469,2]
[421772478,1778129451000,-213.79,0.00034469,2]
[421772491,1778129451000,-451.74648581,0.00035,120]
[421772472,1778129451000,-213.79,0.00034467,2]
[421772448,1778129451000,-4000.0,0.00034247,60]
[421772476,1778129451000,-213.79,0.00034469,2]
[421772451,1778129451000,-228.0,0.00034271,30]
[421772452,1778129451000,-257.0,0.00034271,30]
[421772453,1778129451000,-858.0,0.00034272,30]
[421772454,1778129451000,-215.0,0.00034272,30]
[421772455,1778129451000,-156.18260307,0.00034272,30]
[421772456,1778129451000,-365.0,0.00034272,30]
[421772459,1778129451000,-213.79,0.00034465,2]
[421772461,1778129451000,-213.79,0.00034465,2]
[421772457,1778129451000,-167.47438654,0.00034272,30]
[421772458,1778129451000,-213.79,0.00034465,2]
[421772460,1778129451000,-213.79,0.00034465,2]
[421772462,1778129451000,-213.79,0.00034465,2]
[421772473,1778129451000,-213.72,0.00034469,2]
[421772466,1778129451000,-213.79,0.00034467,2]
[421772465,1778129451000,-2299.4616182,0.00034465,7]
[421772464,1778129451000,-272.95547625,0.00034465,7]
[421772474,1778129451000,-213.79,0.00034469,2]
[421772475,1778129451000,-213.79,0.00034469,2]
[421772470,1778129451000,-213.79,0.00034467,2]
[421772450,1778129451000,-155.0,0.00034271,30]
[421772469,1778129451000,-213.79,0.00034467,2]
[421772467,1778129451000,-213.79,0.00034467,2]
[421772471,1778129451000,-213.79,0.00034467,2]
[421772463,1778129451000,-213.79,0.00034465,2]
[421772468,1778129451000,-213.79,0.00034467,2]
[421772545,1778129452000,-631.0,0.00035616,10]
[421772550,1778129452000,-151.0,0.00035616,7]
[421772539,1778129452000,-500.0,0.00035616,7]
[421772552,1778129452000,-151.0,0.00035616,7]
[421772551,1778129452000,-151.0,0.00035616,7]
[421772547,1778129452000,-151.0,0.00035616,7]
[421772540,1778129452000,-500.0,0.00035616,7]
[421772544,1778129452000,-1000.0,0.00035616,10]
[421772543,1778129452000,-500.0,0.00035616,5]
[421772542,1778129452000,-333.09393225,0.00035616,7]
[421772541,1778129452000,-500.0,0.00035616,7]
[421772548,1778129452000,-151.0,0.00035616,7]
[421772546,1778129452000,-327.37,0.00035616,2]
[421772549,1778129452000,-151.0,0.00035616,7]
[421772561,1778129452000,-1000.0,0.00035616,10]
[421772554,1778129452000,-151.0,0.00035616,7]
[421772568,1778129452000,-1000.0,0.00035616,10]
[421772538,1778129452000,-500.0,0.00035616,7]
[421772565,1778129452000,-1000.0,0.00035616,10]
[421772566,1778129452000,-1000.0,0.00035616,10]
[421772563,1778129452000,-1000.0,0.00035616,10]
[421772567,1778129452000,-1000.0,0.00035616,10]
[421772553,1778129452000,-151.0,0.00035616,7]
[421772560,1778129452000,-1000.0,0.00035616,10]
[421772562,1778129452000,-1000.0,0.00035616,10]
[421772558,1778129452000,-297.30221,0.00035616,7]
[421772559,1778129452000,-1000.0,0.00035616,10]
[421772555,1778129452000,-151.0,0.00035616,7]
[421772557,1778129452000,-151.0,0.00035616,7]
[421772556,1778129452000,-151.0,0.00035616,7]
[421772564,1778129452000,-1000.0,0.00035616,10]
[421772532,1778129452000,-500.0,0.00035616,7]
[421772508,1778129452000,-4515.098,0.00035014,2]
[421772535,1778129452000,-500.0,0.00035616,7]
[421772570,1778129452000,-1000.0,0.00035616,10]
[421772506,1778129452000,-3537.0,0.00035014,2]
[421772509,1778129452000,-1516.98085919,0.000352,7]
[421772507,1778129452000,-1222.0,0.00035014,2]
[421772505,1778129452000,-925.0,0.00035014,2]
[421772510,1778129452000,-302.0,0.0003526,30]
[421772511,1778129452000,-155.0,0.00035271,30]
[421772512,1778129452000,-228.0,0.00035271,30]
[421772513,1778129452000,-257.0,0.00035271,30]
[421772515,1778129452000,-215.0,0.00035272,30]
[421772514,1778129452000,-858.0,0.00035272,30]
[421772516,1778129452000,-365.0,0.00035272,30]
[421772518,1778129452000,-650.36913422,0.000355,2]
[421772520,1778129452000,-300.0,0.00035609,10]
[421772536,1778129452000,-500.0,0.00035616,7]
[421772519,1778129452000,-471.51,0.00035562,7]
[421772517,1778129452000,-441.33,0.00035354,2]
[421772523,1778129452000,-4498.85382229,0.0003561,2]
[421772525,1778129452000,-300.0,0.00035615,10]
[421772521,1778129452000,-300.0,0.00035609,10]
[421772522,1778129452000,-170402.30394645,0.0003561,2]
[421772526,1778129452000,-4000.0,0.00035616,60]
[421772527,1778129452000,-184.615,0.00035616,60]
[421772528,1778129452000,-500.0,0.00035616,5]
[421772529,1778129452000,-500.0,0.00035616,7]
[421772530,1778129452000,-500.0,0.00035616,7]
[421772533,1778129452000,-500.0,0.00035616,7]
[421772531,1778129452000,-500.0,0.00035616,7]
[421772534,1778129452000,-500.0,0.00035616,7]
[421772537,1778129452000,-500.0,0.00035616,7]
[421772524,1778129452000,-300.0,0.00035615,10]
[421772571,1778129452000,-1000.0,0.00035616,10]
[421772604,1778129452000,-500.0,0.00036162,3]
[421772572,1778129452000,-1000.0,0.00035616,10]
[421772607,1778129452000,-500.0,0.00036162,3]
[421772609,1778129452000,-500.0,0.00036162,3]
[421772612,1778129452000,-500.0,0.00036162,3]
[421772611,1778129452000,-500.0,0.00036162,3]
[421772610,1778129452000,-500.0,0.00036162,3]
[421772616,1778129452000,-570.9,0.00036221,10]
[421772617,1778129452000,-441.33,0.00036227,2]
[421772613,1778129452000,-500.0,0.00036162,3]
[421772615,1778129452000,-988.48,0.00036209,10]
[421772620,1778129452000,-164.41055008,0.00036271,30]
[421772618,1778129452000,-300.0,0.0003626,10]
[421772622,1778129452000,-257.0,0.00036271,30]
[421772619,1778129452000,-302.0,0.0003626,30]
[421772621,1778129452000,-228.0,0.00036271,30]
[421772600,1778129452000,-471.51,0.00036121,7]
[421772624,1778129452000,-215.0,0.00036272,30]
[421772625,1778129452000,-365.0,0.00036272,30]
[421772626,1778129452000,-680.9,0.0003631,10]
[421772628,1778129452000,-273.88,0.00036449,10]
[421772630,1778129452000,-176.14,0.00036626,10]
[421772632,1778129452000,-471.51,0.0003668,7]
[421772627,1778129452000,-1000.0,0.00036438,5]
[421772631,1778129452000,-441.33,0.00036663,2]
[421772629,1778129452000,-1630.48,0.00036516,10]
[421772633,1778129452000,-1008.96194888,0.00036702,2]
[421772635,1778129452000,-160.74583464,0.00036756,120]
[421772634,1778129452000,-1000.0,0.00036712,5]
[421772636,1778129452000,-345209.50768755,0.00036756,2]
[421772637,1778129452000,-1008.96194888,0.00036788,2]
[421772569,1778129452000,-1000.0,0.00035616,10]
[421772623,1778129452000,-858.0,0.00036272,30]
[421772606,1778129452000,-500.0,0.00036162,3]
[421772614,1778129452000,-219.10083034,0.00036162,3]
[421772605,1778129452000,-500.0,0.00036162,3]
[421772573,1778129452000,-1000.0,0.00035616,10]
[421772576,1778129452000,-1000.0,0.00035616,10]
[421772574,1778129452000,-1000.0,0.00035616,10]
[421772575,1778129452000,-1000.0,0.00035616,10]
[421772578,1778129452000,-198.273918,0.00035616,7]
[421772577,1778129452000,-151.0,0.00035616,7]
[421772580,1778129452000,-310.0,0.00035767,39]
[421772579,1778129452000,-185.892727,0.0003566,120]
[421772582,1778129452000,-300.0,0.00035858,10]
[421772584,1778129452000,-300.0,0.00035899,10]
[421772583,1778129452000,-4298.23418777,0.00035871,2]
[421772585,1778129452000,-150.0,0.00035899,2]
[421772586,1778129452000,-1391.22,0.000359,30]
[421772589,1778129452000,-151.0,0.0003597,2]
[421772588,1778129452000,-615.43448129,0.000359,120]
[421772581,1778129452000,-441.33,0.0003579,2]
[421772591,1778129452000,-451.74648581,0.00036,120]
[421772608,1778129452000,-500.0,0.00036162,3]
[421772590,1778129452000,-300.0,0.00035999,10]
[421772603,1778129452000,-789.6,0.00036153,30]
[421772601,1778129452000,-152.0,0.00036139,9]
[421772599,1778129452000,-214.63993676,0.00036,10]
[421772595,1778129452000,-38000.0,0.00036,31]
[421772598,1778129452000,-160.0,0.00036,30]
[421772597,1778129452000,-322.27718165,0.00036,120]
[421772596,1778129452000,-54092.61,0.00036,7]
[421772602,1778129452000,-300.0,0.00036141,10]
[421772587,1778129452000,-594.33145555,0.000359,30]
[421772592,1778129452000,-1537.50974704,0.00036,120]
[421772593,1778129452000,-997.89473113,0.00036,120]
[421772594,1778129452000,-1798.75430746,0.00036,120]
[421772648,1778129453000,-4685.30481988,0.00037,3]
[421772655,1778129453000,-310.0,0.00037122,43]
[421772651,1778129453000,-1008.96194888,0.00037015,2]
[421772650,1778129453000,-2500.0,0.00037,120]
[421772649,1778129453000,-4500.0,0.00037,2]
[421772653,1778129453000,-233660.79893292,0.000371,2]
[421772647,1778129453000,-365.0,0.00037,2]
[421772639,1778129453000,-1634.86251983,0.000368,2]
[421772643,1778129453000,-521.94,0.00036986,60]
[421772644,1778129453000,-1008.96194888,0.00036995,2]
[421772646,1778129453000,-1391.22,0.00037,30]
[421772642,1778129453000,-2500.0,0.00036976,10]
[421772641,1778129453000,-277.38140727,0.00036896,2]
[421772640,1778129453000,-1165.27,0.00036815,10]
[421772638,1778129453000,-54092.61,0.000368,7]
[421772652,1778129453000,-1008.96194888,0.00037084,2]
[421772645,1778129453000,-50000.0,0.00037,31]
[421772654,1778129453000,-1008.96194888,0.00037105,2]
[421772663,1778129453000,-858.0,0.00037272,30]
[421772659,1778129453000,-302.0,0.0003726,30]
[421772673,1778129453000,-16.52754721,0.0002,2]
[421772672,1778129453000,-509.0,0.0003743,2]
[421772668,1778129453000,-212.04,0.00037399,2]
[421772671,1778129453000,-34686.66259826,0.0003743,2]
[421772664,1778129453000,-215.0,0.00037272,30]
[421772669,1778129453000,-220.75,0.00037399,2]
[421772670,1778129453000,-1008.96194888,0.00037408,2]
[421772667,1778129453000,-1008.96194888,0.00037383,2]
[421772665,1778129453000,-365.0,0.00037272,30]
[421772666,1778129453000,-1008.96194888,0.00037341,2]
[421772661,1778129453000,-228.0,0.00037271,30]
[421772662,1778129453000,-257.0,0.00037271,30]
[421772660,1778129453000,-1500.0,0.0003726,5]
[421772658,1778129453000,-471.52594819,0.0003724,7]
[421772657,1778129453000,-189.47926865,0.000372,120]
[421772674,1778129453000,-7787.10251145,0.00013345,2]
[421772656,1778129453000,-1008.96194888,0.00037179,2]
[421772675,1778129454000,-2171.71216,0.00013345,2]
[421772678,1778129535000,-3478.722,0.00013298,2]
[421772676,1778129535000,-161.624,0.00013078,2]
[421772677,1778129535000,-1359.654,0.00013078,2]
[421772680,1778129545000,-4847.64898411,0.00013298,2]
[421772679,1778129545000,-152.35101589,0.00013244,2]
[421772683,1778129557000,-347.81425962,0.00013297,2]
[421772684,1778129557000,-3994.99142661,0.00013298,2]
[421772681,1778129557000,-157.19431377,0.00013297,2]
[421772682,1778129557000,-500.0,0.00013297,2]
[421772685,1778129559000,7100.0,0.000301,120]
[421772686,1778129596000,208.94,0.0002713,120]
[421772687,1778129603000,-537.27927348,0.00013244,2]
[421772688,1778129603000,-4462.72072652,0.00013298,2]
[421772689,1778129635000,-211.81427652,0.00013255,2]
[421772690,1778129635000,-4788.18572348,0.00013298,2]
[421772692,1778129644000,-300.0,0.00013297,2]
[421772691,1778129644000,-236.46073589,0.00013255,2]
[421772694,1778129644000,-4313.53926411,0.00013298,2]
[421772693,1778129644000,-150.0,0.00013297,2]
[421772697,1778129652000,-4068.34379424,0.00013298,2]
[421772696,1778129652000,-631.65620576,0.00013297,2]
[421772695,1778129652000,-300.0,0.00013297,2]
[421772699,1778129659000,-2973.98480795,0.00013255,2]
[421772698,1778129659000,-2026.01519205,0.00013255,2]
[421772700,1778129664000,-4213.43390289,0.00013255,2]
[421772702,1778129664000,-548.08692319,0.00013298,2]
[421772701,1778129664000,-238.47917392,0.00013297,2]
[421772704,1778129710000,-3800.0,0.00013298,2]
[421772703,1778129710000,-1200.0,0.00013297,2]
[421772706,1778129739000,-4780.71302468,0.00013298,2]
[421772705,1778129739000,-219.28697532,0.00013244,2]
[421772708,1778129768000,-250.0,0.00013277,2]
[421772709,1778129768000,-4538.18572349,0.00013298,2]
[421772707,1778129768000,-211.81427651,0.00013255,2]
[421772711,1778129778000,-4791.6124739,0.00013255,2]
[421772710,1778129778000,-157.64049058,0.00013255,2]
[421772712,1778129778000,-50.74703552,0.00013298,2]
[421772714,1778129788000,-3649.3232053,0.00013298,2]
[421772713,1778129788000,-1350.6767947,0.00013255,2]
[421772717,1778129846000,-3907.00920946,0.00013298,2]
[421772716,1778129846000,-1092.99079054,0.00013297,3]
[421772719,1778129859000,-3917.65045537,0.00013298,2]
[421772718,1778129859000,-1082.34954463,0.00013297,3]
[421772721,1778129876000,-2500.0,0.00013298,2]
[421772720,1778129876000,-2500.0,0.00013198,2]
[421772729,1778129889000,-4529.88063567,0.00013298,2]
[421772728,1778129889000,-470.11936433,0.00013209,2]
[421772732,1778129901000,-1647.95119348,0.00013298,2]
[421772730,1778129901000,-3194.40831594,0.00013255,2]
[421772731,1778129901000,-157.64049058,0.00013255,2]
[421772733,1778129919000,-900.45119646,0.00013255,2]
[421772734,1778129919000,-4099.54880354,0.00013298,2]
[421772738,1778130011000,-5000.0,0.00013288,2]
[421772739,1778130017000,-442.15934404,0.00013297,2]
[421772740,1778130017000,-4557.84065596,0.00013298,2]
[421772742,1778130026000,-157.64049058,0.00013255,2]
[421772743,1778130026000,-2712.75396546,0.00013298,2]
[421772741,1778130026000,-2129.60554396,0.00013255,2]
[421772745,1778130031000,-4838.79864656,0.00013298,2]
[421772744,1778130031000,-161.20135344,0.00013297,2]
[421772748,1778130042000,-3930.85033945,0.00013298,2]
[421772747,1778130042000,-569.14966055,0.00013297,2]
[421772746,1778130042000,-500.0,0.00013297,2]
[421772750,1778130051000,-4399.69920236,0.00013298,2]
[421772749,1778130051000,-600.30079764,0.00013255,2]
[421772752,1778130068000,-2500.0,0.00013298,2]
[421772751,1778130068000,-2500.0,0.00013198,2]
[421772754,1778130076000,-4798.95162429,0.00013298,2]
[421772753,1778130076000,-201.04837571,0.00013297,2]
[421772757,1778130092000,-3750.653,0.00013298,2]
[421772756,1778130092000,-161.624,0.00013032,2]
[421772755,1778130092000,-1087.723,0.00013032,2]
[421772759,1778130131000,-4000.0,0.00013298,2]
[421772758,1778130131000,-1000.0,0.00013297,2]
[421772761,1778130150000,-3580.2629707,0.00013298,2]
[421772760,1778130150000,-1419.7370293,0.00013273,2]
[421772763,1778130170000,-4588.64555622,0.00013298,2]
[421772762,1778130170000,-411.35444378,0.00013209,2]
[421772765,1778130179000,-4599.79946824,0.00013298,2]
[421772764,1778130179000,-400.20053176,0.00013273,2]
[421772767,1778130222000,-2869.4991,0.00013298,2]
[421772766,1778130222000,-2130.5009,0.00013198,2]
[421772770,1778130233000,-4203.44995084,0.00013298,2]
[421772768,1778130233000,-500.0,0.00013297,2]
[421772769,1778130233000,-296.55004916,0.00013297,2]
[421772772,1778130241000,-2500.0,0.00013298,2]
[421772771,1778130241000,-2500.0,0.00013198,2]
[421772773,1778130261000,-5000.0,0.00013273,2]
[421772775,1778130265000,-1314.30644139,0.00013298,2]
[421772774,1778130265000,-3685.69355861,0.00013273,2]
[421772776,1778130293000,-6997.05212578,0.00012,2]
[421772779,1778130362000,-5000.0,0.00012,2]
[421772780,1778130362000,-10000.01,0.00012,2]
[421772782,1778130363000,-10000.01,0.00012,2]
[421772781,1778130363000,-10000.01,0.00012,2]
[421772784,1778130364000,-10000.01,0.00012,2]
[421772783,1778130364000,-10000.01,0.00012,2]
[421772786,1778130365000,-5000.0,0.00012,2]
[421772785,1778130365000,-10000.01,0.00012,2]
[421772787,1778130367000,-5000.0,0.00012,2]
[421772788,1778130367000,-5000.0,0.00012,2]
[421772791,1778130368000,-5000.0,0.00012,2]
[421772790,1778130368000,-5000.0,0.00012,2]
[421772789,1778130368000,-5000.0,0.00012,2]
[421772794,1778130369000,-5000.0,0.00012,2]
[421772793,1778130369000,-5000.0,0.00012,2]
[421772792,1778130369000,-5000.0,0.00012,2]
[421772796,1778130370000,-5000.0,0.00012,2]
[421772795,1778130370000,-5000.0,0.00012,2]
[421772797,1778130371000,-5000.0,0.00012,2]
[421772798,1778130371000,-4335.23180839,0.00012,2]
[421772807,1778130406000,-4143.62646035,0.00013132,2]
[421772803,1778130406000,-158.2995324,0.00012008,2]
[421772802,1778130406000,-248.07400725,0.00012008,2]
[421772806,1778130406000,-150.0,0.00012008,2]
[421772805,1778130406000,-150.0,0.00012008,2]
[421772804,1778130406000,-150.0,0.00012008,2]
[421772808,1778130409000,-1009.53584665,0.00013132,2]
[421772809,1778130409000,-3990.46415335,0.00013198,2]
[421772812,1778130411000,-373.9814751,0.00013297,2]
[421772813,1778130411000,-473.70459158,0.00013297,2]
[421772811,1778130411000,-2500.0,0.00013198,2]
[421772810,1778130411000,-1652.31393332,0.00013198,2]
[421772814,1778130486000,-359.93513829,0.00013148,2]
[421772816,1778130486000,-4340.06486171,0.00013198,2]
[421772815,1778130486000,-300.0,0.00013197,2]
[421772817,1778130487000,-659.93513829,0.00013198,2]
[421772818,1778130487000,-4340.06486171,0.00013198,2]
[421772819,1778130488000,-5000.0,0.00013198,2]
[421772822,1778130489000,-5000.0,0.00013198,2]
[421772821,1778130489000,-5000.0,0.00013198,2]
[421772820,1778130489000,-5000.0,0.00013198,2]
[421772824,1778130490000,-5000.0,0.00013198,2]
[421772823,1778130490000,-5000.0,0.00013198,2]
[421772826,1778130491000,-5000.0,0.00013198,2]
[421772825,1778130491000,-5000.0,0.00013198,2]
[421772828,1778130493000,-5000.0,0.00013198,2]
[421772827,1778130493000,-5000.0,0.00013198,2]
[421772829,1778130494000,-5000.0,0.00013198,2]
[421772830,1778130494000,-5000.0,0.00013198,2]
[421772831,1778130495000,-5000.0,0.00013198,2]
[421772833,1778130495000,-5000.0,0.00013198,2]
[421772832,1778130495000,-5000.0,0.00013198,2]
[421772835,1778130496000,-5000.0,0.00013198,2]
[421772834,1778130496000,-5000.0,0.00013198,2]
[421772836,1778130497000,-5000.0,0.00013198,2]
[421772838,1778130499000,-5000.0,0.00013198,2]
[421772837,1778130499000,-5000.0,0.00013198,2]
[421772839,1778130500000,-5000.0,0.00013198,2]
[421772840,1778130501000,-5000.0,0.00013198,2]
[421772843,1778130603000,-500.0,0.000127,4]
[421772845,1778130603000,-1000.0,0.000129,4]
[421772842,1778130603000,-200.0,0.000126,4]
[421772844,1778130603000,-700.0,0.000128,4]
[421772851,1778130631000,-250.0,0.00013178,2]
[421772848,1778130631000,-377.3463292,0.00012945,2]
[421772850,1778130631000,-250.0,0.00013147,2]
[421772849,1778130631000,-433.02704927,0.00013098,2]
[421772852,1778130631000,-190.88381172,0.00013188,2]
[421772855,1778130631000,-500.0,0.00013197,2]
[421772859,1778130631000,-3730.87707867,0.00013198,2]
[421772856,1778130631000,-24649.48927111,0.00013198,2]
[421772854,1778130631000,-1200.0,0.00013197,2]
[421772858,1778130631000,-60285.68911902,0.00013198,2]
[421772857,1778130631000,-109717.93578,0.00013198,2]
[421772853,1778130631000,-300.0,0.00013197,2]
[421772872,1778130635000,1128.407,0.00030137,120]
[421772873,1778130637000,-865748.46617941,0.00013198,2]
[421772875,1778130638000,-380.52932165,0.00013198,2]
[421772874,1778130638000,-8147.23437027,0.00013198,2]
[421772921,1778130646000,-3.54086679,0.00013198,2]
[421772920,1778130646000,-5773.06712977,0.00013198,2]
[421772932,1778130850000,-8220.05675397,0.00013098,2]
[421772931,1778130850000,-314.94324603,0.00013098,2]
[421772930,1778130850000,-534.0,0.00013098,2]
[421772929,1778130850000,-193.0,0.00013097,2]
[421772928,1778130850000,-300.0,0.00013097,2]
[421772938,1778130997000,157.32,0.00010222,2]
[421772952,1778131480000,155.13,6.078e-05,2]
[421772953,1778131481000,155.13,6.686e-05,2]
[421772956,1778131481000,155.13,8.51e-05,2]
[421772955,1778131481000,155.13,7.902e-05,2]
[421772954,1778131481000,155.13,7.294e-05,2]
[421772960,1778131482000,155.13,0.00010941,2]
[421772959,1778131482000,155.13,0.00010333,2]
[421772958,1778131482000,155.13,9.725e-05,2]
[421772957,1778131482000,155.13,9.118e-05,2]
[421772961,1778131483000,155.13,0.00011549,2]
[421772964,1778131511000,150.0,0.00011974,2]
[421772965,1778131520000,2000.0,0.00011974,2]
[421772966,1778131541000,154.71,0.00011974,2]
[421772967,1778131645000,553.7,0.00011868,2]
[421772970,1778131717000,4000.0,0.00011825,2]
[421772973,1778131764000,10000.01,0.00011766,2]
[421772971,1778131764000,1432.98,0.00011766,2]
[421772972,1778131764000,10000.01,0.00011766,2]
[421772974,1778131764000,10000.01,0.00011766,2]
[421772979,1778131764000,10000.01,0.00011766,2]
[421772977,1778131764000,10000.01,0.00011766,2]
[421772975,1778131764000,10000.01,0.00011766,2]
[421772978,1778131764000,10000.01,0.00011766,2]
[421772980,1778131764000,10000.01,0.00011766,2]
[421772976,1778131764000,10000.01,0.00011766,2]
[421773254,1778131984000,-187.06,0.00012329,2]
[421773264,1778131984000,-275.57534025,0.00012808,2]
[421773259,1778131984000,-166.43,0.00012643,2]
[421773256,1778131984000,-1000.0,0.00012476,2]
[421773258,1778131984000,-164.75284384,0.00012613,2]
[421773257,1778131984000,-200.0,0.00012575,2]
[421773252,1778131984000,-155.13,0.00012157,2]
[421773253,1778131984000,-164.75284384,0.00012284,2]
[421773248,1778131984000,-6483.92,0.00012055,2]
[421773245,1778131984000,-4407.25174913,0.00011955,2]
[421773250,1778131984000,-321.3,0.00012097,2]
[421773249,1778131984000,-250.0,0.00012076,2]
[421773246,1778131984000,-1402.4828827,0.00011955,2]
[421773247,1778131984000,-164.75284387,0.00011955,2]
[421773242,1778131984000,-321.53507138,0.00011766,2]
[421773243,1778131984000,-164978.85598152,0.00011766,2]
[421773241,1778131984000,-1481.26177972,0.00011766,2]
[421773238,1778131984000,-3596.4,0.00011766,2]
[421773240,1778131984000,-673.90711308,0.00011766,2]
[421773237,1778131984000,-1200.0,0.00011765,2]
[421773239,1778131984000,-599.30213,0.00011766,2]
[421773260,1778131984000,-4000.0,0.00012711,2]
[421773244,1778131984000,-70.6779243,0.00011766,2]
[421773262,1778131984000,-2500.0,0.00012808,2]
[421773251,1778131984000,-4000.0,0.0001212,2]
[421773263,1778131984000,-389.72434437,0.00012808,2]
[421773261,1778131984000,-207.57,0.0001272,2]
[421773287,1778131984000,-801.04957216,0.00012908,2]
[421773286,1778131984000,-7725.96759274,0.00012908,2]
[421773284,1778131984000,-1030.30186262,0.00012908,2]
[421773285,1778131984000,-752.99552532,0.00012908,2]
[421773283,1778131984000,-380.52932165,0.00012908,2]
[421773282,1778131984000,-8147.23437027,0.00012908,2]
[421773280,1778131984000,-101072.91348538,0.00012908,2]
[421773279,1778131984000,-1761.47750305,0.00012907,2]
[421773281,1778131984000,-953.26385381,0.00012908,2]
[421773278,1778131984000,-533.4521096,0.00012907,2]
[421773277,1778131984000,-514.26251032,0.00012907,2]
[421773255,1778131984000,-4000.0,0.00012416,2]
[421773274,1778131984000,-500.0,0.00012907,2]
[421773275,1778131984000,-205.57766459,0.00012907,2]
[421773266,1778131984000,-873.13,0.00012893,2]
[421773267,1778131984000,-299.99,0.00012893,2]
[421773268,1778131984000,-7051.26907611,0.00012893,2]
[421773270,1778131984000,-150.99,0.00012893,2]
[421773265,1778131984000,-285.93491708,0.00012815,2]
[421773272,1778131984000,-606.5595874,0.00012907,2]
[421773276,1778131984000,-500.0,0.00012907,2]
[421773271,1778131984000,-192.96371619,0.00012898,2]
[421773273,1778131984000,-200.48696492,0.00012907,2]
[421773269,1778131984000,-2948.72092389,0.00012893,2]
[421773293,1778131985000,-333.37030991,0.00012908,2]
[421773294,1778131985000,-291.91598091,0.00012908,2]
[421773291,1778131985000,-2590.96888089,0.00012908,2]
[421773290,1778131985000,-255486.98507292,0.00012908,2]
[421773289,1778131985000,-3532.20722519,0.00012908,2]
[421773288,1778131985000,-0.07734025,0.00012908,2]
[421773292,1778131985000,-323.85780839,0.00012908,2]
[421773298,1778131986000,-5748.57003731,0.00012908,2]
[421773296,1778131986000,-653.74439782,0.00012908,2]
[421773295,1778131986000,-3682.04121702,0.00012908,2]
[421773297,1778131986000,-18407.35940155,0.00012908,2]
[421773300,1778131986000,-67310.90057201,0.00012908,2]
[421773302,1778131986000,-3670.20354381,0.00012908,2]
[421773304,1778131986000,-509.0,0.00012908,2]
[421773303,1778131986000,-48704.71650335,0.00012908,2]
[421773301,1778131986000,-8953.36337577,0.00012908,2]
[421773299,1778131986000,-7677.81569053,0.00012908,2]
[421773305,1778131989000,-1434.14,0.00011667,2]
[421773306,1778132005000,-200.0,0.00011649,2]
[421773307,1778132050000,-500.0,0.00011654,2]
[421773308,1778132095000,-2770.0737884,0.00011658,2]
[421773309,1778132111000,-300.0,0.00011764,2]
[421773311,1778132295000,203.5,0.00030137,120]
[421773313,1778132307000,2000.0,0.0001199,2]
[421773316,1778132560000,369.13,0.00011944,2]
[421773317,1778132574000,157.33,9.555e-05,2]
[421773318,1778132670000,995.29,0.00011933,2]
[421773320,1778132702000,150.0,0.00011614,2]
[421773321,1778132707000,150.0,0.00011614,2]
[421773323,1778132707000,151.10219896,0.00011614,2]
[421773322,1778132707000,150.49474749,0.00011614,2]
[421773324,1778132707000,150.0,0.00011614,2]
[421773325,1778132710000,150.0,0.00011614,2]
[421773326,1778132710000,150.0,0.00011614,2]
[421773328,1778132710000,150.0,0.00011936,2]
[421773327,1778132710000,150.0,0.00011775,2]
[421773330,1778132714000,150.0,0.00011614,2]
[421773329,1778132714000,150.0,0.00011614,2]
[421773331,1778132717000,150.0,0.00011614,2]
[421773333,1778132723000,150.0,0.00011614,2]
[421773332,1778132723000,150.0,0.00011614,2]
[421773334,1778132723000,150.0,0.00011829,2]
[421773337,1778132972000,-89.36699627,0.0001202,2]